[Event "Early-Titled-Tuesday-Blitz-June-18-2024"]
[Site "Chess.com"]
[Date "2024.06.18"]
[Round "3"]
[White "penguingm1"]
[Black "Mikhail_Bryakin"]
[Result "0-1"]
[WhiteElo "2953"]
[BlackElo "2755"]
[TimeControl "180+1"]
[EndTime "8:31:01 PDT"]
[Termination "Mikhail_Bryakin won by resignation"]

1. d4 {[%clk 0:03:00.9]} 1... Nf6 {[%clk 0:02:57.9]} 2. Nf3 {[%clk 0:03:00]}
2... g6 {[%clk 0:02:52.6]} 3. Nbd2 {[%clk 0:02:56]} 3... d5 {[%clk 0:02:49.8]}
4. b4 {[%clk 0:02:53.6]} 4... Bg7 {[%clk 0:02:49.8]} 5. e3 {[%clk 0:02:49.1]}
5... a5 {[%clk 0:02:46.8]} 6. b5 {[%clk 0:02:48.4]} 6... c5 {[%clk 0:02:45.5]}
7. bxc6 {[%clk 0:02:47.3]} 7... bxc6 {[%clk 0:02:39]} 8. Ba3 {[%clk 0:02:38.5]}
8... Ba6 {[%clk 0:02:37.4]} 9. c4 {[%clk 0:02:35.2]} 9... O-O {[%clk 0:02:33.3]}
10. Be2 {[%clk 0:02:34]} 10... Nbd7 {[%clk 0:02:25]} 11. O-O {[%clk 0:02:29.3]}
11... dxc4 {[%clk 0:02:20.5]} 12. Nxc4 {[%clk 0:02:27.8]} 12... Nd5 {[%clk
0:02:21.1]} 13. Qd2 {[%clk 0:01:55.1]} 13... Bb5 {[%clk 0:02:07.5]} 14. Rab1
{[%clk 0:01:33.8]} 14... Nb4 {[%clk 0:02:05.4]} 15. Rfc1 {[%clk 0:01:26.8]}
15... c5 {[%clk 0:01:57.8]} 16. dxc5 {[%clk 0:01:24.6]} 16... Nxc5 {[%clk
0:01:57.5]} 17. Bxb4 {[%clk 0:01:24.6]} 17... axb4 {[%clk 0:01:56.8]} 18. Qxb4
{[%clk 0:01:24.8]} 18... Bxc4 {[%clk 0:01:43]} 19. Qxc4 {[%clk 0:01:06]} 19...
Ne6 {[%clk 0:01:32.9]} 20. Qb3 {[%clk 0:00:52.3]} 20... Qa5 {[%clk 0:01:32.2]}
21. Bc4 {[%clk 0:00:51.9]} 21... Nc5 {[%clk 0:01:29.4]} 22. Qc2 {[%clk
0:00:47.2]} 22... e6 {[%clk 0:01:27.4]} 23. h4 {[%clk 0:00:44.3]} 23... Bf6
{[%clk 0:01:22.1]} 24. h5 {[%clk 0:00:44.4]} 24... Kg7 {[%clk 0:01:22.7]} 25.
Nd4 {[%clk 0:00:34.6]} 25... Qa4 {[%clk 0:01:12.4]} 26. Qe2 {[%clk 0:00:30.7]}
26... Rab8 {[%clk 0:01:07.1]} 27. Bb5 {[%clk 0:00:27]} 27... Qa3 {[%clk
0:01:07.4]} 28. Qf3 {[%clk 0:00:21.6]} 28... Bxd4 {[%clk 0:01:06]} 29. exd4
{[%clk 0:00:22.5]} 29... Qxf3 {[%clk 0:01:06.5]} 30. gxf3 {[%clk 0:00:22.7]}
30... Nb7 {[%clk 0:01:05.6]} 31. hxg6 {[%clk 0:00:21.6]} 31... hxg6 {[%clk
0:01:05.7]} 32. a4 {[%clk 0:00:21.2]} 32... Nd6 {[%clk 0:01:06.1]} 33. Bc6
{[%clk 0:00:20.2]} 33... Rxb1 {[%clk 0:01:02.2]} 34. Rxb1 {[%clk 0:00:21.1]}
34... Rc8 {[%clk 0:01:02.5]} 35. Rb6 {[%clk 0:00:17.9]} 35... Nc4 {[%clk
0:01:02]} 36. Ra6 {[%clk 0:00:18.1]} 36... Rd8 {[%clk 0:01:01]} 37. Ra7 {[%clk
0:00:14.3]} 37... Rxd4 {[%clk 0:01:00.7]} 38. a5 {[%clk 0:00:13.8]} 38... Rd1+
{[%clk 0:00:59.9]} 39. Kg2 {[%clk 0:00:14]} 39... Ra1 {[%clk 0:00:58.3]} 40. a6
{[%clk 0:00:13.8]} 40... Kf6 {[%clk 0:00:53.9]} 41. f4 {[%clk 0:00:11.3]} 41...
g5 {[%clk 0:00:50.2]} 42. fxg5+ {[%clk 0:00:10.6]} 42... Kxg5 {[%clk 0:00:51.1]}
43. Bb5 {[%clk 0:00:07.9]} 43... Nd6 {[%clk 0:00:50.2]} 44. Be2 {[%clk
0:00:08.5]} 44... Kf6 {[%clk 0:00:48.7]} 45. Rd7 {[%clk 0:00:08.1]} 45... Ke5
{[%clk 0:00:46.2]} 46. Rc7 {[%clk 0:00:06]} 46... f5 {[%clk 0:00:45.7]} 47. Rc5+
{[%clk 0:00:05.6]} 47... Kd4 {[%clk 0:00:45.2]} 48. Rc6 {[%clk 0:00:06]} 48...
Kd5 {[%clk 0:00:45.7]} 49. Bf3+ {[%clk 0:00:06.3]} 49... Ne4 {[%clk 0:00:46]}
50. Rb6 {[%clk 0:00:06.6]} 50... Ke5 {[%clk 0:00:44.5]} 51. Be2 {[%clk
0:00:06.6]} 51... Nc5 {[%clk 0:00:41.5]} 52. Bc4 {[%clk 0:00:04.9]} 52... Ra4
{[%clk 0:00:41.1]} 53. Bb5 {[%clk 0:00:05.1]} 53... Ra5 {[%clk 0:00:39.7]} 54.
Be2 {[%clk 0:00:04.6]} 54... Ra2 {[%clk 0:00:39.5]} 55. Bf1 {[%clk 0:00:04.9]}
55... Ne4 {[%clk 0:00:38.4]} 56. Kg1 {[%clk 0:00:04.7]} 56... Nc5 {[%clk
0:00:35.2]} 57. Rb5 {[%clk 0:00:03.9]} 57... Kd6 {[%clk 0:00:35.1]} 58. Rb1
{[%clk 0:00:04.3]} 58... Ke5 {[%clk 0:00:32.8]} 59. Re1+ {[%clk 0:00:02.6]}
59... Kf6 {[%clk 0:00:31.3]} 60. Re3 {[%clk 0:00:02.1]} 60... Nxa6 {[%clk
0:00:28.6]} 61. Rxe6+ {[%clk 0:00:01.7]} 61... Kxe6 {[%clk 0:00:28.3]} 62. Bc4+
{[%clk 0:00:02.5]} 62... Ke5 {[%clk 0:00:28.8]} 63. Bxa2 {[%clk 0:00:03.4]}
63... Nc5 {[%clk 0:00:26.8]} 64. Bb1 {[%clk 0:00:03.9]} 64... f4 {[%clk
0:00:27.1]} 65. Kg2 {[%clk 0:00:04.3]} 65... Nb3 {[%clk 0:00:27.8]} 66. Bd3
{[%clk 0:00:04.6]} 66... Nd4 {[%clk 0:00:27.5]} 67. f3 {[%clk 0:00:05.3]} 67...
Nc6 {[%clk 0:00:25.6]} 68. Kf2 {[%clk 0:00:05.8]} 68... Kd4 {[%clk 0:00:26]} 69.
Be4 {[%clk 0:00:06.2]} 69... Nb4 {[%clk 0:00:25.4]} 70. Bf5 {[%clk 0:00:06.6]}
70... Kc3 {[%clk 0:00:24.8]} 71. Ke2 {[%clk 0:00:06.9]} 71... Nc2 {[%clk
0:00:23.5]} 72. Be4 {[%clk 0:00:06.8]} 72... Nd4+ {[%clk 0:00:23.8]} 73. Kf2
{[%clk 0:00:07.4]} 73... Kd2 {[%clk 0:00:24.5]} 74. Bd5 {[%clk 0:00:07.9]} 74...
Nc2 {[%clk 0:00:24.7]} 75. Be4 {[%clk 0:00:08]} 75... Ne3 {[%clk 0:00:25.1]} 76.
Bc6 {[%clk 0:00:07.1]} 76... Nd1+ {[%clk 0:00:25.4]} 77. Kf1 {[%clk 0:00:06.8]}
77... Ke3 {[%clk 0:00:26.1]} 78. Kg2 {[%clk 0:00:07.1]} 78... Nc3 {[%clk
0:00:26.3]} 79. Bb7 {[%clk 0:00:07]} 79... Ne2 {[%clk 0:00:26.6]} 80. Ba8 {[%clk
0:00:07.2]} 80... Nd4 {[%clk 0:00:26.9]} 81. Bb7 {[%clk 0:00:07.1]} 81... Nf5
{[%clk 0:00:27.2]} 82. Kh3 {[%clk 0:00:06.9]} 82... Nd6 {[%clk 0:00:26.5]} 83.
Kg2 {[%clk 0:00:07.1]} 83... Nxb7 {[%clk 0:00:26.6]} 0-1

[Event "Early-Titled-Tuesday-Blitz-June-18-2024"]
[Site "Chess.com"]
[Date "2024.06.18"]
[Round "3"]
[White "Dexter_Dyke"]
[Black "glucolisis04"]
[Result "0-1"]
[WhiteElo "2486"]
[BlackElo "2295"]
[TimeControl "180+1"]
[EndTime "8:31:04 PDT"]
[Termination "glucolisis04 won on time"]

1. e4 {[%clk 0:03:00]} 1... c5 {[%clk 0:02:59.9]} 2. Nf3 {[%clk 0:02:59.5]} 2...
Nc6 {[%clk 0:02:54.2]} 3. d4 {[%clk 0:02:59.7]} 3... cxd4 {[%clk 0:02:49.1]} 4.
c3 {[%clk 0:03:00.6]} 4... dxc3 {[%clk 0:02:48.4]} 5. Nxc3 {[%clk 0:03:01.5]}
5... e6 {[%clk 0:02:45.9]} 6. Bc4 {[%clk 0:03:01.5]} 6... Qc7 {[%clk 0:02:43.3]}
7. Qe2 {[%clk 0:03:01.4]} 7... Nf6 {[%clk 0:02:39.8]} 8. O-O {[%clk 0:03:01.6]}
8... Ng4 {[%clk 0:02:39.6]} 9. g3 {[%clk 0:03:01.9]} 9... Nge5 {[%clk
0:02:35.1]} 10. Bb3 {[%clk 0:03:01.5]} 10... a6 {[%clk 0:02:33.7]} 11. Bf4
{[%clk 0:03:01.4]} 11... Bd6 {[%clk 0:02:27.8]} 12. Nxe5 {[%clk 0:02:58.2]}
12... Bxe5 {[%clk 0:02:23.9]} 13. Bxe5 {[%clk 0:02:58.4]} 13... Qxe5 {[%clk
0:02:23.4]} 14. f4 {[%clk 0:02:57.2]} 14... Qc5+ {[%clk 0:02:19.8]} 15. Kg2
{[%clk 0:02:52.7]} 15... Nd4 {[%clk 0:02:17.9]} 16. Qg4 {[%clk 0:02:52.9]} 16...
O-O {[%clk 0:02:10.5]} 17. f5 {[%clk 0:02:36.2]} 17... exf5 {[%clk 0:01:59.9]}
18. exf5 {[%clk 0:02:36]} 18... Nxb3 {[%clk 0:01:58.9]} 19. axb3 {[%clk
0:02:30]} 19... d6 {[%clk 0:01:34.2]} 20. Rad1 {[%clk 0:02:24.3]} 20... Bd7
{[%clk 0:01:31.1]} 21. Kh3 {[%clk 0:02:12.9]} 21... Bc6 {[%clk 0:01:02.3]} 22.
f6 {[%clk 0:01:57.7]} 22... g6 {[%clk 0:00:53.5]} 23. Kh4 {[%clk 0:01:48.6]}
23... Qe3 {[%clk 0:00:50.7]} 24. Qg5 {[%clk 0:01:41.6]} 24... Qxg5+ {[%clk
0:00:27]} 25. Kxg5 {[%clk 0:01:42.5]} 25... Rfe8 {[%clk 0:00:26]} 26. Rxd6
{[%clk 0:01:32.5]} 26... Re5+ {[%clk 0:00:25.8]} 27. Kg4 {[%clk 0:01:28.3]}
27... h5+ {[%clk 0:00:23.1]} 28. Kh4 {[%clk 0:01:24.5]} 28... Rae8 {[%clk
0:00:22.3]} 29. Rfd1 {[%clk 0:01:22.5]} 29... Kh7 {[%clk 0:00:19.9]} 30. Rd8
{[%clk 0:01:12.4]} 30... g5+ {[%clk 0:00:12.2]} 31. Kh3 {[%clk 0:00:52.2]} 31...
Re2 {[%clk 0:00:04.8]} 32. Nxe2 {[%clk 0:00:16.1]} 32... Rxe2 {[%clk 0:00:05.7]}
33. Rg1 {[%clk 0:00:16.7]} 33... Bf3 {[%clk 0:00:04.6]} 34. g4 {[%clk
0:00:14.1]} 34... hxg4+ {[%clk 0:00:02.7]} 35. Rxg4 {[%clk 0:00:13.6]} 35...
Bxg4+ {[%clk 0:00:02.4]} 36. Kxg4 {[%clk 0:00:14.2]} 36... Kg6 {[%clk 0:00:02]}
37. Rg8+ {[%clk 0:00:13.9]} 37... Kxf6 {[%clk 0:00:02]} 38. Rb8 {[%clk
0:00:14.8]} 38... Re4+ {[%clk 0:00:02.2]} 39. Kf3 {[%clk 0:00:14.9]} 39... Rf4+
{[%clk 0:00:02.3]} 40. Ke3 {[%clk 0:00:15.1]} 40... Rb4 {[%clk 0:00:02.6]} 41.
Kd2 {[%clk 0:00:14.6]} 41... Rxb3 {[%clk 0:00:02.8]} 42. Kc2 {[%clk 0:00:15.5]}
42... Rh3 {[%clk 0:00:02.6]} 43. Rxb7 {[%clk 0:00:15.5]} 43... Rxh2+ {[%clk
0:00:03.3]} 44. Kb1 {[%clk 0:00:16.4]} 44... Rh1+ {[%clk 0:00:03.5]} 45. Ka2
{[%clk 0:00:16.7]} 45... g4 {[%clk 0:00:02.5]} 46. Rb6+ {[%clk 0:00:17.6]} 46...
Kg5 {[%clk 0:00:02.5]} 47. Rxa6 {[%clk 0:00:18.5]} 47... g3 {[%clk 0:00:02.6]}
48. Ra8 {[%clk 0:00:19.2]} 48... g2 {[%clk 0:00:02.2]} 49. Rg8+ {[%clk
0:00:20.1]} 49... Kf4 {[%clk 0:00:02.4]} 50. b4 {[%clk 0:00:21]} 50... g1=Q
{[%clk 0:00:01.9]} 51. Rf8 {[%clk 0:00:21.9]} 51... Rh2+ {[%clk 0:00:01.8]} 52.
Kb3 {[%clk 0:00:22.8]} 52... Qg3+ {[%clk 0:00:02.3]} 53. Ka4 {[%clk 0:00:23.7]}
53... Rh7 {[%clk 0:00:02.7]} 54. Kb5 {[%clk 0:00:24.6]} 54... Qg5+ {[%clk
0:00:02.5]} 55. Kc6 {[%clk 0:00:24.6]} 55... Rh6+ {[%clk 0:00:03.4]} 56. Kd7
{[%clk 0:00:25]} 56... Qg6 {[%clk 0:00:04.1]} 57. Ke8 {[%clk 0:00:24.4]} 57...
Qe6+ {[%clk 0:00:04.5]} 58. Kd8 {[%clk 0:00:24.5]} 58... Qd6+ {[%clk 0:00:05.1]}
59. Ke8 {[%clk 0:00:25]} 59... Re6+ {[%clk 0:00:04.3]} 60. Kxf7 {[%clk
0:00:25.5]} 60... Rf6+ {[%clk 0:00:04.7]} 61. Kg7 {[%clk 0:00:08.8]} 61... Qxf8+
{[%clk 0:00:05.6]} 0-1

[Event "Early-Titled-Tuesday-Blitz-June-18-2024"]
[Site "Chess.com"]
[Date "2024.06.18"]
[Round "3"]
[White "Evan_Attaker"]
[Black "Chernov_Alexander_A"]
[Result "1-0"]
[WhiteElo "2694"]
[BlackElo "2293"]
[TimeControl "180+1"]
[EndTime "8:31:05 PDT"]
[Termination "Evan_Attaker won on time"]

1. a3 {[%clk 0:03:00.3]} 1... e5 {[%clk 0:02:58.9]} 2. c4 {[%clk 0:02:54.5]}
2... Nf6 {[%clk 0:02:58]} 3. d3 {[%clk 0:02:53.1]} 3... c6 {[%clk 0:02:57.4]} 4.
Nf3 {[%clk 0:02:50]} 4... d6 {[%clk 0:02:56.3]} 5. Nc3 {[%clk 0:02:48.7]} 5...
Be7 {[%clk 0:02:56.1]} 6. e3 {[%clk 0:02:45.1]} 6... O-O {[%clk 0:02:55.8]} 7.
Be2 {[%clk 0:02:42.3]} 7... Re8 {[%clk 0:02:54.4]} 8. O-O {[%clk 0:02:37.8]}
8... a6 {[%clk 0:02:54.5]} 9. b4 {[%clk 0:02:32.9]} 9... Bf8 {[%clk 0:02:41.7]}
10. Bb2 {[%clk 0:02:28.9]} 10... d5 {[%clk 0:02:41.3]} 11. cxd5 {[%clk
0:02:28.1]} 11... cxd5 {[%clk 0:02:41.2]} 12. d4 {[%clk 0:02:26.8]} 12... e4
{[%clk 0:02:36.8]} 13. Ne5 {[%clk 0:02:26.1]} 13... Nc6 {[%clk 0:02:28.5]} 14.
Nxc6 {[%clk 0:02:24.1]} 14... bxc6 {[%clk 0:02:27.8]} 15. Na4 {[%clk 0:02:24]}
15... Bd6 {[%clk 0:02:25.2]} 16. Rc1 {[%clk 0:02:19.2]} 16... Re6 {[%clk
0:01:46.6]} 17. g3 {[%clk 0:02:13.3]} 17... g6 {[%clk 0:01:42.8]} 18. Rxc6
{[%clk 0:02:07.8]} 18... h5 {[%clk 0:01:36.3]} 19. Nc5 {[%clk 0:02:00.6]} 19...
Bxc5 {[%clk 0:01:17.7]} 20. Rxe6 {[%clk 0:02:00.9]} 20... Bd6 {[%clk 0:01:08.6]}
21. Rxd6 {[%clk 0:01:57.9]} 21... Qxd6 {[%clk 0:01:08.4]} 22. Qd2 {[%clk
0:01:45.8]} 22... Kg7 {[%clk 0:01:05.3]} 23. Rc1 {[%clk 0:01:44]} 23... h4
{[%clk 0:01:01.7]} 24. a4 {[%clk 0:01:39.4]} 24... Bg4 {[%clk 0:00:55.8]} 25.
Bxg4 {[%clk 0:01:32.1]} 25... Nxg4 {[%clk 0:00:55.6]} 26. Qe2 {[%clk 0:01:18.3]}
26... Qe6 {[%clk 0:00:46.1]} 27. b5 {[%clk 0:00:52.8]} 27... Rh8 {[%clk
0:00:39.3]} 28. Rc6 {[%clk 0:00:44.1]} 28... Qf5 {[%clk 0:00:37.8]} 29. h3
{[%clk 0:00:42.1]} 29... Nh2 {[%clk 0:00:29.2]} 30. g4 {[%clk 0:00:32.3]} 30...
Nf3+ {[%clk 0:00:27.5]} 31. Kg2 {[%clk 0:00:29.2]} 31... Qd7 {[%clk 0:00:24.4]}
32. Ba3 {[%clk 0:00:23.6]} 32... axb5 {[%clk 0:00:19.7]} 33. axb5 {[%clk
0:00:23.1]} 33... Rb8 {[%clk 0:00:15.8]} 34. Bd6 {[%clk 0:00:20.6]} 34... Rb7
{[%clk 0:00:14.5]} 35. Bf4 {[%clk 0:00:19.9]} 35... g5 {[%clk 0:00:12.7]} 36.
Be5+ {[%clk 0:00:17.8]} 36... Nxe5 {[%clk 0:00:11.7]} 37. dxe5 {[%clk
0:00:18.4]} 37... d4 {[%clk 0:00:11.5]} 38. Qb2 {[%clk 0:00:15.8]} 38... Qd5
{[%clk 0:00:07.7]} 39. Qxd4 {[%clk 0:00:13.4]} 39... Rxb5 {[%clk 0:00:07.7]} 40.
Qxd5 {[%clk 0:00:09.8]} 40... Rxd5 {[%clk 0:00:08.1]} 41. e6 {[%clk 0:00:10.2]}
41... Re5 {[%clk 0:00:07.6]} 42. exf7 {[%clk 0:00:09.1]} 42... Kxf7 {[%clk
0:00:07.7]} 43. Ra6 {[%clk 0:00:09.6]} 43... Kg7 {[%clk 0:00:07.3]} 44. Kf1
{[%clk 0:00:09.3]} 44... Kf7 {[%clk 0:00:07.5]} 45. Ke2 {[%clk 0:00:09.9]} 45...
Rd5 {[%clk 0:00:06.1]} 46. Ra4 {[%clk 0:00:09.2]} 46... Re5 {[%clk 0:00:05.7]}
47. Kd2 {[%clk 0:00:09.5]} 47... Ke6 {[%clk 0:00:05.2]} 48. Kc3 {[%clk
0:00:08.6]} 48... Rc5+ {[%clk 0:00:03.9]} 49. Rc4 {[%clk 0:00:05.5]} 49... Rxc4+
{[%clk 0:00:03.1]} 50. Kxc4 {[%clk 0:00:05.8]} 50... Ke5 {[%clk 0:00:02.6]} 51.
Kc5 {[%clk 0:00:05.7]} 51... Ke6 {[%clk 0:00:02.4]} 52. Kd4 {[%clk 0:00:04.1]}
52... Kd6 {[%clk 0:00:02.2]} 53. Kxe4 {[%clk 0:00:04.7]} 53... Ke6 {[%clk
0:00:02.6]} 54. f4 {[%clk 0:00:05.1]} 54... Kf6 {[%clk 0:00:03]} 55. f5 {[%clk
0:00:02.2]} 1-0

[Event "Early-Titled-Tuesday-Blitz-June-18-2024"]
[Site "Chess.com"]
[Date "2024.06.18"]
[Round "3"]
[White "pospisku"]
[Black "elis06"]
[Result "1-0"]
[WhiteElo "2534"]
[BlackElo "2347"]
[TimeControl "180+1"]
[EndTime "8:31:06 PDT"]
[Termination "pospisku won by checkmate"]

1. d4 {[%clk 0:03:00.9]} 1... d5 {[%clk 0:02:59.7]} 2. c4 {[%clk 0:03:00.2]}
2... e6 {[%clk 0:02:58.3]} 3. Nc3 {[%clk 0:02:59.7]} 3... Nf6 {[%clk 0:02:54.5]}
4. cxd5 {[%clk 0:02:57.2]} 4... exd5 {[%clk 0:02:54]} 5. Bg5 {[%clk 0:02:57.4]}
5... c6 {[%clk 0:02:53.2]} 6. e3 {[%clk 0:02:56.8]} 6... Be7 {[%clk 0:02:53.6]}
7. Bd3 {[%clk 0:02:56.7]} 7... Nbd7 {[%clk 0:02:53.9]} 8. Nf3 {[%clk 0:02:56.4]}
8... h6 {[%clk 0:02:54.4]} 9. Bh4 {[%clk 0:02:52.7]} 9... O-O {[%clk 0:02:54.4]}
10. Qc2 {[%clk 0:02:51.6]} 10... Re8 {[%clk 0:02:51.9]} 11. O-O {[%clk
0:02:49.8]} 11... Ne4 {[%clk 0:02:50.8]} 12. Bxe4 {[%clk 0:02:45.8]} 12... Bxh4
{[%clk 0:02:46.1]} 13. Bh7+ {[%clk 0:02:08.8]} 13... Kh8 {[%clk 0:02:43.3]} 14.
Nxh4 {[%clk 0:01:44.1]} 14... Qxh4 {[%clk 0:02:42.3]} 15. Bd3 {[%clk 0:01:44.5]}
15... Nf6 {[%clk 0:02:24.1]} 16. Ne2 {[%clk 0:01:39.4]} 16... Ng4 {[%clk
0:02:12.1]} 17. h3 {[%clk 0:01:36.6]} 17... Nf6 {[%clk 0:02:01.6]} 18. Rae1
{[%clk 0:01:18.7]} 18... Bd7 {[%clk 0:01:40.7]} 19. b4 {[%clk 0:01:13.8]} 19...
Rac8 {[%clk 0:01:34.6]} 20. a4 {[%clk 0:01:13.4]} 20... Ne4 {[%clk 0:01:32.2]}
21. f3 {[%clk 0:00:50.3]} 21... Ng5 {[%clk 0:00:39.1]} 22. Nc1 {[%clk 0:00:30]}
22... Qg3 {[%clk 0:00:31.4]} 23. Kh1 {[%clk 0:00:26.9]} 23... b6 {[%clk
0:00:26.4]} 24. Nb3 {[%clk 0:00:25]} 24... g6 {[%clk 0:00:20.6]} 25. Qf2 {[%clk
0:00:23.9]} 25... Qd6 {[%clk 0:00:19.2]} 26. Qd2 {[%clk 0:00:23.2]} 26... Kg7
{[%clk 0:00:19.2]} 27. e4 {[%clk 0:00:18.6]} 27... dxe4 {[%clk 0:00:18]} 28.
fxe4 {[%clk 0:00:19.5]} 28... Be6 {[%clk 0:00:18.2]} 29. e5 {[%clk 0:00:14.1]}
29... Qd7 {[%clk 0:00:17.3]} 30. Bc2 {[%clk 0:00:11.4]} 30... Rcd8 {[%clk
0:00:11.5]} 31. h4 {[%clk 0:00:08.4]} 31... Bxb3 {[%clk 0:00:11.3]} 32. Bxb3
{[%clk 0:00:07.2]} 32... Ne6 {[%clk 0:00:11.6]} 33. Qf2 {[%clk 0:00:06.2]} 33...
Re7 {[%clk 0:00:10.1]} 34. Re4 {[%clk 0:00:06.2]} 34... h5 {[%clk 0:00:08.8]}
35. g3 {[%clk 0:00:05.5]} 35... Rf8 {[%clk 0:00:09]} 36. Kh2 {[%clk 0:00:06]}
36... Nc7 {[%clk 0:00:08.3]} 37. Qf6+ {[%clk 0:00:06.3]} 37... Kg8 {[%clk
0:00:08.4]} 38. g4 {[%clk 0:00:06.4]} 38... Nd5 {[%clk 0:00:07.6]} 39. Bxd5
{[%clk 0:00:06.3]} 39... cxd5 {[%clk 0:00:07.9]} 40. Ref4 {[%clk 0:00:06.4]}
40... hxg4 {[%clk 0:00:07.9]} 41. h5 {[%clk 0:00:07]} 41... Re6 {[%clk
0:00:08.2]} 42. Qg5 {[%clk 0:00:06]} 42... Qxa4 {[%clk 0:00:05.5]} 43. Rf6
{[%clk 0:00:03.5]} 43... Qc2+ {[%clk 0:00:05.6]} 44. R1f2 {[%clk 0:00:04]} 44...
Qe4 {[%clk 0:00:02.8]} 45. Rxe6 {[%clk 0:00:02.7]} 45... fxe6 {[%clk 0:00:03.3]}
46. Rxf8+ {[%clk 0:00:03]} 46... Kxf8 {[%clk 0:00:03.9]} 47. Qf6+ {[%clk
0:00:03.9]} 47... Kg8 {[%clk 0:00:04.2]} 48. Qxe6+ {[%clk 0:00:04.6]} 48... Kh7
{[%clk 0:00:04.1]} 49. Qxg6+ {[%clk 0:00:04.5]} 49... Qxg6 {[%clk 0:00:04.5]}
50. hxg6+ {[%clk 0:00:05.4]} 50... Kxg6 {[%clk 0:00:05.4]} 51. Kg3 {[%clk
0:00:06.3]} 51... Kf5 {[%clk 0:00:06]} 52. b5 {[%clk 0:00:03.6]} 52... Kg5
{[%clk 0:00:04.2]} 53. Kf2 {[%clk 0:00:02.8]} 53... Kf5 {[%clk 0:00:04.3]} 54.
Ke3 {[%clk 0:00:03]} 54... Kg5 {[%clk 0:00:04.4]} 55. Kf2 {[%clk 0:00:03.9]}
55... Kf4 {[%clk 0:00:04.8]} 56. Kg2 {[%clk 0:00:04.3]} 56... Kf5 {[%clk
0:00:05.2]} 57. Kg3 {[%clk 0:00:05.2]} 57... Kg5 {[%clk 0:00:05.6]} 58. e6
{[%clk 0:00:06]} 58... Kf6 {[%clk 0:00:06]} 59. Kxg4 {[%clk 0:00:06.3]} 59...
Kxe6 {[%clk 0:00:06.6]} 60. Kg5 {[%clk 0:00:06.7]} 60... Kd6 {[%clk 0:00:07.1]}
61. Kf5 {[%clk 0:00:07.2]} 61... a6 {[%clk 0:00:05.1]} 62. bxa6 {[%clk
0:00:07.4]} 62... Kc7 {[%clk 0:00:05.1]} 63. Ke5 {[%clk 0:00:07.6]} 63... b5
{[%clk 0:00:05.2]} 64. Kxd5 {[%clk 0:00:08]} 64... Kb6 {[%clk 0:00:05]} 65. a7
{[%clk 0:00:08.6]} 65... Kxa7 {[%clk 0:00:05.3]} 66. Kc5 {[%clk 0:00:09.3]}
66... Ka6 {[%clk 0:00:04.8]} 67. d5 {[%clk 0:00:10]} 67... b4 {[%clk 0:00:03.8]}
68. d6 {[%clk 0:00:09.8]} 68... b3 {[%clk 0:00:03.4]} 69. d7 {[%clk 0:00:10.4]}
69... b2 {[%clk 0:00:03.1]} 70. d8=Q {[%clk 0:00:10.7]} 70... b1=Q {[%clk
0:00:02.3]} 71. Qa8# {[%clk 0:00:11.1]} 1-0